bitfinex/quotes_BTCUSD_20250410
["timestamp","ask_amount","ask_price","bid_price","bid_amount"]
[1744255179477,0.48968555,81551.0,81550.0,0.05]
[1744255180044,0.48968555,81551.0,81550.0,1e-06]
[1744255180243,0.60105583,81551.0,81550.0,1e-06]
[1744255180872,0.60005583,81551.0,81550.0,1e-06]
[1744255181458,0.60305583,81551.0,81550.0,1e-06]
[1744255182822,0.30052116,81551.0,81550.0,1e-06]
[1744255183256,0.27813173,81551.0,81550.0,1e-06]
[1744255183682,0.39868555,81551.0,81550.0,1e-06]
[1744255183881,0.39568555,81551.0,81550.0,1e-06]
[1744255184076,0.27513173,81551.0,81550.0,1e-06]
[1744255184480,0.29752627,81551.0,81550.0,1e-06]
[1744255184907,0.27513173,81551.0,81550.0,1e-06]
[1744255186503,0.39568555,81551.0,81550.0,1e-06]
[1744255186699,0.44168555,81551.0,81550.0,1e-06]
[1744255186905,0.46410586,81551.0,81550.0,1e-06]
[1744255187825,0.46510586,81551.0,81550.0,1e-06]
[1744255188244,0.257567,81532.0,81531.0,0.0002068]
[1744255188444,0.26879351,81532.0,81531.0,0.0002068]
[1744255189557,0.27734669,81532.0,81531.0,0.0002068]
[1744255192222,0.29982663,81532.0,81531.0,0.0002068]
[1744255195030,0.05452463,81532.0,81531.0,0.0002068]
[1744255199907,0.03204469,81532.0,81531.0,0.0002068]
[1744255200792,0.27734669,81532.0,81531.0,0.0002068]
[1744255201205,0.27734669,81532.0,81531.0,0.0066646]
[1744255201716,0.27734669,81532.0,81531.0,0.0002068]
[1744255206900,0.29986502,81532.0,81531.0,0.0002068]
[1744255209878,0.34696502,81532.0,81531.0,0.0002068]
[1744255210102,0.51391884,81532.0,81531.0,0.0002068]
[1744255215412,0.39336502,81532.0,81531.0,0.0002068]
[1744255216191,0.29986502,81532.0,81531.0,0.0002068]
[1744255216572,0.29986502,81532.0,81531.0,0.0066646]
[1744255216775,0.29986502,81532.0,81531.0,0.0002068]
[1744255221954,0.34586502,81532.0,81531.0,0.0002068]
[1744255222367,0.34586502,81532.0,81531.0,8e-07]
[1744255222368,0.46641884,81532.0,81531.0,8e-07]
[1744255222541,0.48095969,81532.0,81531.0,8e-07]
[1744255222756,0.27211385,81530.0,81529.0,1.3e-07]
[1744255222963,0.44246767,81530.0,81529.0,1.3e-07]
[1744255223348,0.45089299,81530.0,81529.0,1.3e-07]
[1744255223566,0.48463783,81530.0,81529.0,1.3e-07]
[1744255224791,0.48563783,81530.0,81529.0,1.3e-07]
[1744255225485,0.47109698,81530.0,81529.0,1.3e-07]
[1744255225721,0.83569603,81530.0,81529.0,1.3e-07]
[1744255225945,0.85023688,81530.0,81529.0,1.3e-07]
[1744255226300,0.89933688,81530.0,81529.0,1.3e-07]
[1744255226799,0.89833688,81530.0,81529.0,1.3e-07]
[1744255227225,0.71514221,81530.0,81529.0,1.3e-07]
[1744255227949,0.71414221,81530.0,81529.0,1.3e-07]
[1744255228687,0.29974316,81530.0,81529.0,1.3e-07]
[1744255229485,0.04217016,81530.0,81529.0,1.3e-07]
[1744255229841,0.01965183,81530.0,81529.0,1.3e-07]
[1744255231916,0.00842532,81530.0,81529.0,0.24531113]
[1744255232118,0.01725279,81530.0,81529.0,0.24531113]
[1744255233349,0.02951779,81530.0,81529.0,1.3e-07]
[1744255233557,0.03258419,81530.0,81529.0,1.3e-07]
[1744255233928,0.05508828,81530.0,81529.0,1.3e-07]
[1744255234910,0.06634077,81530.0,81529.0,1.3e-07]
[1744255236152,0.04383668,81530.0,81529.0,1.3e-07]
[1744255238629,0.04383705,81530.0,81529.0,1.3e-07]
[1744255240013,0.04077028,81530.0,81529.0,1.3e-07]
[1744255240189,0.04383691,81530.0,81529.0,1.3e-07]
[1744255241798,0.20959073,81530.0,81529.0,1.3e-07]
[1744255242155,0.27293212,81530.0,81529.0,1.3e-07]
[1744255242416,0.26986495,81530.0,81529.0,1.3e-07]
[1744255243034,0.29536912,81530.0,81529.0,1.3e-07]
[1744255243618,0.29236912,81530.0,81529.0,1.3e-07]
[1744255243826,0.29436912,81530.0,81529.0,1.3e-07]
[1744255245891,0.27982827,81530.0,81529.0,1.3e-07]
[1744255246118,0.11047445,81530.0,81529.0,1.3e-07]
[1744255246274,0.06834123,81530.0,81529.0,1.3e-07]
[1744255246722,0.04583706,81530.0,81529.0,1.3e-07]
[1744255247512,0.04383706,81530.0,81529.0,1.3e-07]
[1744255248903,0.03157206,81530.0,81529.0,1.3e-07]
[1744255249112,0.02850528,81530.0,81529.0,0.01226513]
[1744255249480,0.01967781,81530.0,81529.0,0.13281895]
[1744255249703,0.01125249,81530.0,81529.0,0.18275212]
[1744255249890,0.00012786,81532.0,81531.0,0.012265]
[1744255250095,0.00012786,81532.0,81531.0,0.13405132]
[1744255251125,0.00012786,81532.0,81531.0,0.41492047]
[1744255251327,0.00012786,81532.0,81531.0,0.41368797]
[1744255251909,0.00306552,81555.0,81554.0,0.245236]
[1744255252109,0.00306549,81559.0,81555.0,0.245233]
[1744255252308,0.00506523,81558.0,81555.0,0.245233]
[1744255252475,0.00306547,81557.0,81554.0,0.00042718]
[1744255252676,0.00556113,81556.0,81554.0,0.00042718]
[1744255252876,0.0030655,81555.0,81554.0,0.00042718]
[1744255253072,0.00866102,81555.0,81554.0,0.00042718]
[1744255254786,0.00559552,81555.0,81554.0,0.00042718]
[1744255254957,0.0030655,81562.0,81555.0,0.245233]
[1744255255291,0.0030655,81562.0,81561.0,0.245215]
[1744255255511,0.52116566,81563.0,81561.0,0.245215]
[1744255255512,0.10676661,81563.0,81561.0,0.245215]
[1744255256450,0.000337,81563.0,81562.0,0.13281382]
[1744255256648,0.000337,81563.0,81562.0,0.183244]
[1744255257019,0.000337,81563.0,81562.0,0.2048616]
[1744255258193,0.000337,81563.0,81562.0,0.18324375]
[1744255258396,0.000337,81563.0,81562.0,0.52324375]
[1744255258595,1e-06,81563.0,81562.0,0.5913616]
[1744255259028,1e-06,81563.0,81562.0,0.56851382]
[1744255260425,6e-07,81565.0,81564.0,0.01226]
[1744255260652,0.01225,81631.0,81618.0,0.257295]
[1744255260852,0.01225,81631.0,81617.0,0.245046]
[1744255260853,0.00912378,81619.0,81617.0,0.245046]
[1744255261061,0.00912378,81619.0,81604.0,0.21903311]
[1744255261062,0.012252,81614.0,81604.0,0.245085]
[1744255261274,0.00183559,81613.0,81607.0,0.245076]
[1744255261476,0.00183559,81616.0,81606.0,0.245077]
[1744255261739,0.012252,81615.0,81607.0,0.245074]
[1744255261940,0.00183559,81614.0,81609.0,0.24507]
[1744255262139,0.24689259,81614.0,81607.0,0.245075]
[1744255262298,0.012254,81606.0,81590.0,1.54040911]
[1744255262640,0.012253,81609.0,81599.0,0.245099]
[1744255262848,0.012253,81609.0,81602.0,0.24509]
[1744255262980,0.012253,81608.0,81599.0,0.12055382]
[1744255263187,0.012253,81612.0,81604.0,0.245084]
[1744255263467,0.257306,81615.0,81603.0,0.012254]
[1744255263618,0.00012835,81616.0,81606.0,0.012254]
[1744255263828,0.00012835,81616.0,81610.0,0.245068]
[1744255264459,0.245054,81615.0,81608.0,0.245073]
[1744255264658,0.25743135,81616.0,81609.0,0.245069]
[1744255264893,0.00012835,81616.0,81610.0,0.245065]
[1744255265102,0.00012835,81616.0,81614.0,0.245053]
[1744255265705,0.00012835,81616.0,81614.0,0.257305]
[1744255265896,0.01225,81627.0,81613.0,0.257307]
[1744255265897,0.0003376,81633.0,81624.0,0.012251]
[1744255266035,0.245003,81632.0,81622.0,0.012251]
[1744255266235,0.0003376,81633.0,81626.0,0.245019]
[1744255266478,0.0003376,81633.0,81625.0,0.245021]
[1744255266677,0.0003376,81633.0,81626.0,0.245019]
[1744255266878,0.0125866,81633.0,81624.0,0.245024]
[1744255267080,0.0003376,81633.0,81625.0,0.245021]
[1744255267259,0.0003376,81633.0,81629.0,0.245008]
[1744255267438,0.0003376,81633.0,81630.0,0.245006]
[1744255267632,0.0003376,81633.0,81627.0,0.245013]
[1744255267892,0.0003376,81633.0,81627.0,0.245015]
[1744255268068,0.0003376,81633.0,81590.0,1.27954264]
[1744255268069,0.01225,81627.0,81609.0,0.012253]
[1744255268273,0.245027,81624.0,81613.0,0.320221]
[1744255268456,0.012252,81617.0,81613.0,0.00042718]
[1744255268651,0.245048,81617.0,81613.0,0.00042718]
[1744255269083,0.012252,81616.0,81613.0,0.00042718]
[1744255269254,0.012252,81614.0,81613.0,0.00042718]
[1744255270080,0.012251,81623.0,81613.0,0.00042718]
[1744255270294,0.24505,81616.0,81613.0,0.00042718]
[1744255270497,0.257305,81615.0,81613.0,0.00042718]
[1744255271226,0.245053,81615.0,81613.0,0.00042718]
[1744255271852,0.012252,81614.0,81613.0,0.00042718]
[1744255271970,0.02679285,81614.0,81613.0,0.00042718]
[1744255272634,0.19654667,81614.0,81613.0,0.00042718]
[1744255272838,0.53654667,81614.0,81613.0,0.00042718]
[1744255273046,1.24380167,81614.0,81613.0,1.8e-07]
[1744255273238,0.012258,81578.0,81562.0,0.01226]
[1744255273438,0.24517,81576.0,81570.0,0.245186]
[1744255273774,0.257413,81581.0,81573.0,0.245176]
[1744255274009,0.245153,81582.0,81572.0,0.012259]
[1744255274162,0.294327,81591.0,81572.0,0.012259]
[1744255274366,0.245137,81587.0,81581.0,0.245152]
[1744255274579,0.245149,81583.0,81576.0,0.245169]
[1744255274912,0.245149,81583.0,81573.0,0.012258]
[1744255274913,0.245168,81577.0,81561.0,0.004]
[1744255275114,0.012258,81575.0,81565.0,0.01226]
[1744255275322,0.012258,81575.0,81567.0,0.245196]
[1744255275818,0.012258,81575.0,81568.0,0.245192]
[1744255275970,0.245172,81576.0,81569.0,0.245189]
[1744255276183,0.24517,81576.0,81568.0,0.257451]
[1744255276389,0.012257,81586.0,81578.0,0.012258]
[1744255276600,0.012257,81586.0,81572.0,0.012259]
[1744255276801,0.34,81597.0,81572.0,0.012259]
[1744255276802,0.012257,81580.0,81572.0,0.012259]
[1744255277007,0.257416,81580.0,81574.0,0.2453424]
[1744255277838,0.257416,81580.0,81575.0,0.245172]
[1744255278514,0.257407,81583.0,81577.0,0.245164]
[1744255278726,0.00042728,81590.0,81587.0,0.245134]
[1744255278932,0.00042728,81590.0,81583.0,0.012257]
[1744255279157,0.00042728,81590.0,81584.0,0.245144]
[1744255279353,0.25781228,81590.0,81582.0,0.245152]
[1744255279559,0.25739,81588.0,81582.0,0.245152]
[1744255279961,0.25781228,81590.0,81587.0,0.245134]
[1744255279962,0.00042728,81590.0,81587.0,0.245134]
[1744255280161,0.00042728,81590.0,81589.0,0.012256]
[1744255280586,0.00042728,81590.0,81589.0,0.13526093]
[1744255280788,0.00042728,81590.0,81589.0,0.15801163]
[1744255281087,0.00042728,81590.0,81589.0,0.49801136]
[1744255281327,0.00042728,81590.0,81589.0,0.49556052]
[1744255282391,0.012252,81615.0,81605.0,0.257334]
[1744255282634,0.245063,81612.0,81607.0,0.245075]
[1744255282807,0.245107,81597.0,81590.0,0.352256]
[1744255283004,0.012254,81600.0,81592.0,0.257377]
[1744255283206,0.245106,81598.0,81592.0,0.245121]
[1744255283368,0.24511,81596.0,81590.0,0.12055382]
[1744255283706,0.257361,81598.0,81592.0,0.24512]
[1744255283938,0.012255,81599.0,81594.0,0.245114]
[1744255284140,0.257356,81599.0,81594.0,0.245114]
[1744255284384,0.012254,81603.0,81595.0,0.245112]
[1744255284535,0.24509,81603.0,81598.0,0.245103]
[1744255284715,0.257341,81604.0,81599.0,0.2451]
[1744255284918,0.245084,81605.0,81600.0,0.245097]
[1744255285235,0.245084,81605.0,81595.0,0.012255]
[1744255285236,0.24509,81603.0,81598.0,0.245102]
[1744255285875,0.012254,81604.0,81600.0,0.245097]
[1744255286220,0.257316,81612.0,81607.0,0.245075]
[1744255286387,0.257316,81612.0,81605.0,0.245081]
[1744255286628,0.245068,81610.0,81606.0,0.245078]
[1744255286848,0.245068,81610.0,81605.0,0.245081]
[1744255286849,0.245073,81609.0,81605.0,0.245081]
[1744255287070,0.24508,81606.0,81602.0,0.24509]
[1744255287314,0.245075,81608.0,81603.0,0.245088]
[1744255288000,0.02066514,81607.0,81600.0,0.245095]
[1744255288255,0.26574314,81607.0,81601.0,0.245094]
[1744255288484,0.00841214,81606.0,81601.0,0.245094]
[1744255288928,0.00841214,81606.0,81603.0,0.245088]
[1744255289155,0.00841214,81605.0,81603.0,0.245088]
[1744255289662,0.245065,81611.0,81607.0,0.245076]
[1744255289894,0.257321,81610.0,81605.0,0.245081]
[1744255290113,0.245071,81609.0,81605.0,0.245081]
[1744255290333,0.245074,81608.0,81605.0,0.245081]
[1744255290557,0.25349514,81608.0,81605.0,0.245081]
[1744255290793,0.00842114,81608.0,81606.0,0.245079]
[1744255290979,0.00842114,81608.0,81605.0,0.245081]
[1744255291196,0.00842114,81607.0,81605.0,0.245081]
[1744255291409,0.00842114,81607.0,81604.0,0.245084]
[1744255291813,0.00842114,81607.0,81605.0,0.245082]
[1744255291959,0.00842114,81606.0,81605.0,0.245082]
[1744255292187,0.00842114,81606.0,81605.0,0.257336]
[1744255292645,0.245051,81616.0,81612.0,0.24506]
[1744255292846,0.245054,81615.0,81612.0,0.24506]
[1744255293083,0.012251,81620.0,81609.0,0.012253]
[1744255293335,0.245044,81618.0,81614.0,0.245053]
[1744255293565,0.245047,81617.0,81613.0,0.245058]
[1744255293779,0.012252,81616.0,81611.0,0.245062]
[1744255293992,0.245061,81614.0,81610.0,0.245067]
[1744255294228,0.00842545,81613.0,81611.0,0.245064]
[1744255294941,0.245023,81625.0,81612.0,0.257315]
[1744255295183,0.049,81638.0,81632.0,0.245001]
[1744255295422,0.012249,81639.0,81632.0,0.245001]
[1744255295658,0.257223,81641.0,81632.0,0.245001]
[1744255295911,0.00876277,81633.0,81632.0,0.245001]
[1744255296363,0.00876277,81633.0,81630.0,0.245007]
[1744255296593,0.26600977,81633.0,81632.0,0.02283266]
[1744255296832,0.2575846,81633.0,81632.0,0.02283266]
[1744255297304,0.2575846,81633.0,81632.0,0.04961773]
[1744255297528,0.2575846,81633.0,81632.0,0.02283266]
[1744255298671,0.26601088,81633.0,81632.0,0.02283266]
[1744255299395,0.00876388,81633.0,81632.0,0.26783366]
[1744255299611,0.0003376,81633.0,81632.0,0.26783366]
[1744255300088,0.0003376,81633.0,81632.0,0.28008366]
[1744255300307,0.0003376,81633.0,81632.0,0.26783366]
[1744255300756,0.0003376,81633.0,81632.0,0.28008366]
[1744255301238,0.012245,81665.0,81653.0,0.244938]
[1744255301461,0.0125834,81654.0,81643.0,0.244966]
[1744255301682,0.00046561,81654.0,81653.0,0.02283266]
[1744255302611,0.00046561,81654.0,81653.0,0.05618098]
[1744255302842,0.00046561,81654.0,81653.0,0.02283266]
[1744255303314,0.00046561,81654.0,81653.0,0.03507866]
[1744255303560,0.00046561,81654.0,81653.0,0.15808178]
[1744255303784,0.00046561,81654.0,81653.0,0.22137906]
[1744255304698,0.00046561,81654.0,81653.0,0.21892976]
[1744255306044,0.00046561,81654.0,81653.0,0.1889808]
[1744255306243,0.00046561,81654.0,81653.0,0.15563248]
[1744255306450,0.00046561,81654.0,81653.0,0.03507866]
[1744255306813,0.00046561,81654.0,81653.0,0.012246]
[1744255307439,0.00046561,81654.0,81653.0,0.16519795]
[1744255307977,0.00046561,81654.0,81653.0,0.19854627]
[1744255308204,0.00046561,81654.0,81653.0,0.44348427]
[1744255308405,0.00046561,81654.0,81653.0,0.40768678]
[1744255308626,0.00046561,81654.0,81653.0,0.46386776]
[1744255311448,0.00046561,81654.0,81653.0,0.51316776]
[1744255311810,6.1e-07,81654.0,81653.0,0.86227063]
[1744255312642,6.1e-07,81654.0,81653.0,0.86518759]
[1744255313041,6.1e-07,81654.0,81653.0,0.02283266]
[1744255313293,6.1e-07,81654.0,81653.0,0.26777066]
[1744255313583,6.1e-07,81654.0,81653.0,0.244938]
[1744255314352,6.1e-07,81654.0,81653.0,0.257184]
[1744255316846,0.24484061,81664.0,81662.0,0.244911]
[1744255317059,0.244905,81664.0,81660.0,0.244916]
[1744255317225,0.00706447,81663.0,81661.0,0.244913]
[1744255317434,0.012245,81665.0,81662.0,0.24491]
[1744255317753,0.00706447,81664.0,81662.0,0.24491]
[1744255318055,0.3030828,81666.0,81662.0,0.24491]
[1744255318354,0.00698961,81663.0,81662.0,0.24491]
[1744255318556,0.0459368,81666.0,81664.0,0.244903]
[1744255319546,0.0459368,81666.0,81664.0,0.244905]
[1744255321073,0.0003368,81666.0,81664.0,0.244905]
[1744255321277,0.0003368,81666.0,81665.0,0.012245]
[1744255321828,0.0003368,81666.0,81665.0,0.257147]
[1744255322615,0.0003368,81666.0,81665.0,0.29049532]
[1744255322998,0.0003368,81666.0,81665.0,0.4409981]
[1744255324029,0.0003368,81666.0,81665.0,0.37770082]
[1744255327653,0.0003368,81666.0,81661.0,0.244905]
[1744255327858,0.0003368,81666.0,81665.0,0.244902]
[1744255328355,0.00510714,81666.0,81665.0,0.244902]
[1744255328554,0.0003368,81666.0,81665.0,0.244902]
[1744255329303,0.00510714,81666.0,81665.0,0.244902]
[1744255330189,0.01356474,81666.0,81665.0,0.244902]
[1744255331405,0.01356474,81666.0,81665.0,0.257147]
[1744255331628,0.0087944,81666.0,81665.0,0.257147]
[1744255331849,0.0003368,81666.0,81665.0,0.257147]
[1744255334704,0.0003368,81666.0,81665.0,0.29528771]
[1744255335566,0.0003368,81666.0,81665.0,0.41584153]
[1744255336204,0.2452358,81666.0,81665.0,0.03814071]
[1744255336354,0.0003368,81666.0,81665.0,0.28304271]
[1744255336562,0.00514982,81666.0,81665.0,0.29528771]
[1744255337520,0.0003368,81666.0,81665.0,0.29528771]
[1744255338777,0.2574798,81666.0,81665.0,0.03814071]
[1744255338963,0.012245,81664.0,81658.0,0.18492]
[1744255339150,0.01737667,81666.0,81660.0,0.244917]
[1744255339365,0.244906,81664.0,81661.0,0.03818289]
[1744255339652,0.257147,81665.0,81662.0,0.244911]
[1744255340085,0.244906,81664.0,81662.0,0.244911]
[1744255340206,0.257147,81665.0,81662.0,0.244911]
[1744255340609,0.244906,81664.0,81661.0,0.244914]
[1744255341048,0.257147,81665.0,81661.0,0.244914]
[1744255341256,0.244906,81664.0,81661.0,0.244914]
[1744255342230,0.244908,81663.0,81658.0,0.442088]
[1744255342448,0.244917,81660.0,81658.0,0.18492]
[1744255342813,0.012245,81662.0,81658.0,0.18492]
[1744255343014,0.244915,81661.0,81658.0,0.429843]
[1744255343236,0.012245,81663.0,81660.0,0.244917]
[1744255343439,0.257154,81663.0,81658.0,0.429843]
[1744255343611,0.244912,81662.0,81659.0,0.24492]
[1744255343821,0.257157,81662.0,81658.0,0.18492]
[1744255344343,0.0003368,81666.0,81664.0,0.244905]
[1744255344522,0.0003368,81666.0,81665.0,0.244902]
[1744255344674,0.012245,81663.0,81659.0,0.12055382]
[1744255344882,0.012245,81663.0,81658.0,0.429843]
[1744255345093,0.012245,81663.0,81658.0,0.18492]
[1744255345649,0.244908,81664.0,81660.0,0.244917]
[1744255346575,0.012245,81665.0,81658.0,0.18492]
[1744255346721,0.0125808,81666.0,81652.0,0.18492]
[1744255346722,0.24494,81653.0,81652.0,0.18492]
[1744255346921,0.257178,81655.0,81652.0,0.18492]
[1744255347265,0.244923,81659.0,81655.0,0.244932]
[1744255347427,0.244924,81658.0,81654.0,0.244935]
[1744255347626,0.244929,81657.0,81654.0,0.244935]
[1744255347827,0.257169,81659.0,81655.0,0.244932]
[1744255348030,0.012247,81652.0,81645.0,0.12055382]
[1744255348290,0.012247,81652.0,81642.0,0.18492]
[1744255348291,0.012247,81647.0,81642.0,0.18492]
[1744255348588,0.012247,81651.0,81647.0,0.244954]
[1744255348777,0.244945,81651.0,81648.0,0.244952]
[1744255349368,0.244945,81651.0,81647.0,0.244954]
[1744255350158,0.244949,81650.0,81647.0,0.244954]
[1744255350587,0.244949,81650.0,81640.0,0.01223383]
[1744255350588,0.244962,81645.0,81640.0,0.01223383]
[1744255350788,0.25721,81645.0,81631.0,0.1850883]
[1744255351040,0.31865085,81645.0,81631.0,0.0001683]
[1744255351376,0.43920467,81645.0,81631.0,0.0001683]
[1744255351577,0.45046524,81645.0,81631.0,0.0001683]
[1744255351799,0.47298624,81645.0,81631.0,0.0001683]
[1744255351997,0.48143156,81645.0,81631.0,0.0001683]
[1744255353560,0.45891056,81645.0,81631.0,0.0001683]
[1744255355020,1.35298871,81645.0,81644.0,2.1e-07]
[1744255355218,1.2811924,81645.0,81644.0,2.1e-07]
[1744255355566,1.6811924,81645.0,81644.0,2.1e-07]
[1744255356327,0.31719185,81632.0,81631.0,5.1e-07]
[1744255356466,0.43774567,81632.0,81631.0,5.1e-07]
[1744255356661,0.46867283,81632.0,81631.0,5.1e-07]
[1744255357222,0.4799334,81632.0,81631.0,5.1e-07]
[1744255357805,0.8679334,81632.0,81631.0,5.1e-07]
[1744255358227,0.87979619,81632.0,81631.0,5.1e-07]
[1744255358432,0.96109071,81632.0,81631.0,5.1e-07]
[1744255358795,0.87979619,81632.0,81631.0,5.1e-07]
[1744255359631,0.87979619,81632.0,81631.0,0.50000051]
[1744255360093,1.27979619,81632.0,81631.0,0.50000051]
[1744255360331,0.64266,81629.0,81628.0,8.1e-07]
[1744255360446,1.36058726,81629.0,81628.0,8.1e-07]
[1744255360650,1.42515467,81629.0,81628.0,8.1e-07]
[1744255360876,1.44486056,81629.0,81628.0,8.1e-07]
[1744255361089,1.44486056,81629.0,81616.0,0.0001683]
[1744255361090,0.689398,81617.0,81616.0,0.0001683]
[1744255361303,0.82449267,81617.0,81616.0,0.0001683]
[1744255361693,0.84697451,81617.0,81616.0,0.0001683]
[1744255362204,0.83197451,81617.0,81616.0,0.0001683]
[1744255362409,0.25455,81617.0,81616.0,0.0001683]
[1744255363257,0.26909085,81617.0,81616.0,0.0001683]
[1744255365202,0.72964467,81617.0,81616.0,0.0001683]
[1744255365875,0.94217726,81617.0,81616.0,3e-07]
[1744255366099,0.82174467,81617.0,81616.0,3e-07]
[1744255366297,0.303004,81615.0,81614.0,6e-07]
[1744255366521,0.43809867,81615.0,81614.0,6e-07]
[1744255366764,0.46045972,81615.0,81614.0,6e-07]
[1744255367002,0.88324458,81615.0,81614.0,6e-07]
[1744255367229,0.89442511,81615.0,81614.0,6e-07]
[1744255367686,1.23942511,81615.0,81614.0,6e-07]
[1744255367910,1.28582511,81615.0,81614.0,6e-07]
[1744255369316,1.28682511,81615.0,81614.0,6e-07]
[1744255369558,1.28182511,81615.0,81614.0,6e-07]
[1744255370224,1.68182511,81615.0,81614.0,6e-07]
[1744255370453,1.68082511,81615.0,81614.0,6e-07]
[1744255371339,1.73992426,81615.0,81614.0,6e-07]
[1744255371563,1.71756321,81615.0,81614.0,6e-07]
[1744255372214,1.33210406,81615.0,81614.0,6e-07]
[1744255373626,1.35446215,81615.0,81614.0,6e-07]
[1744255374783,1.47489474,81615.0,81614.0,6e-07]
[1744255375324,1.35446215,81615.0,81614.0,6e-07]
[1744255379162,1.28082215,81615.0,81614.0,6e-07]
[1744255379381,0.71362748,81615.0,81614.0,6e-07]
[1744255379832,0.29922748,81615.0,81614.0,6e-07]
[1744255380058,0.27686939,81615.0,81614.0,6e-07]
[1744255381275,0.01956539,81615.0,81614.0,6e-07]
[1744255381516,0.01956539,81615.0,81614.0,0.0495006]
[1744255381751,0.245007,81630.0,81622.0,0.012251]
[1744255381977,0.25728,81623.0,81621.0,0.0458]
[1744255382641,0.245029,81623.0,81621.0,0.0458]
[1744255382884,0.25728,81623.0,81621.0,0.0458]
[1744255383558,0.257274,81625.0,81621.0,0.0458]
[1744255383559,0.245026,81624.0,81621.0,0.0458]
[1744255384013,0.257281,81623.0,81621.0,0.0458]
[1744255384292,0.257281,81623.0,81615.0,0.12055382]
[1744255384293,0.257304,81615.0,81614.0,0.0495006]
[1744255384540,0.245052,81615.0,81614.0,6e-07]
[1744255384776,0.01225,81629.0,81617.0,0.245046]
[1744255385018,0.245017,81627.0,81624.0,0.245023]
[1744255385242,0.012249,81634.0,81628.0,0.257261]
[1744255385411,0.257247,81634.0,81628.0,0.257261]
[1744255385629,0.245002,81632.0,81628.0,0.01225]
[1744255385940,0.244998,81633.0,81629.0,0.24501]
[1744255386145,0.245002,81632.0,81629.0,0.24501]
[1744255386348,0.245008,81630.0,81627.0,0.245015]
[1744255386648,0.01225,81629.0,81625.0,0.0495]
[1744255386855,0.245037,81620.0,81617.0,0.245046]
[1744255387059,0.24516509,81620.0,81617.0,0.12055382]
[1744255387281,0.00012809,81620.0,81617.0,0.12055382]
[1744255387483,0.00012809,81620.0,81619.0,0.257292]
[1744255388345,0.00012809,81620.0,81617.0,0.12055382]
[1744255388862,0.00012809,81620.0,81617.0,0.13280582]
[1744255389087,0.24516609,81620.0,81617.0,0.13280582]
[1744255389284,0.00012809,81620.0,81617.0,0.37785082]
[1744255389650,0.01237909,81620.0,81617.0,0.12055382]
[1744255389838,0.00012809,81620.0,81617.0,0.12055382]
[1744255390035,0.00012809,81620.0,81618.0,0.257293]
[1744255390241,0.00012809,81620.0,81619.0,0.37784582]
[1744255392250,0.00012809,81620.0,81619.0,0.12055382]
[1744255392452,0.257304,81615.0,81614.0,6e-07]
[1744255394672,0.27184485,81615.0,81614.0,6e-07]
[1744255395080,0.82816403,81615.0,81614.0,6e-07]
[1744255395253,0.81444748,81615.0,81614.0,6e-07]
[1744255395453,0.83775708,81615.0,81614.0,6e-07]
[1744255395678,0.95867657,81615.0,81614.0,6e-07]
[1744255396066,1.37307657,81615.0,81614.0,6e-07]
[1744255396265,1.41986916,81615.0,81614.0,6e-07]
[1744255396684,0.647056,81599.0,81598.0,0.0001683]
[1744255396888,0.78215067,81599.0,81598.0,0.0001683]
[1744255397135,0.81297897,81599.0,81598.0,0.0001683]
[1744255397796,0.76327897,81599.0,81598.0,0.0001683]
[1744255397936,0.31393524,81599.0,81598.0,0.0001683]
[1744255398915,0.29151575,81599.0,81598.0,0.0001683]
[1744255399095,0.28310694,81599.0,81598.0,0.0001683]
[1744255401503,0.26856609,81599.0,81598.0,0.0001683]
[1744255401923,0.257356,81599.0,81598.0,0.0001683]
[1744255402742,0.27189685,81599.0,81598.0,0.0001683]
[1744255405278,0.85288326,81599.0,81598.0,3e-07]
[1744255405424,0.90258326,81599.0,81598.0,3e-07]
[1744255405663,0.83935527,81599.0,81598.0,3e-07]
[1744255406078,0.597378,81592.0,81591.0,3e-07]
[1744255406281,0.77887267,81592.0,81591.0,3e-07]
[1744255406487,0.34,81583.0,81581.0,2e-07]
[1744255406693,0.77890367,81582.0,81581.0,2e-07]
[1744255406899,0.77890367,81582.0,81579.0,5e-07]
[1744255406900,0.597415,81580.0,81579.0,5e-07]
[1744255407126,0.822928,81580.0,81579.0,5e-07]
[1744255407327,0.822928,81580.0,81579.0,0.00042778]
[1744255407533,0.822928,81580.0,81579.0,7.8e-07]
[1744255408157,0.824928,81580.0,81579.0,7.8e-07]
[1744255409419,0.80252018,81580.0,81579.0,7.8e-07]
[1744255409791,0.79411558,81580.0,81579.0,7.8e-07]
[1744255410194,1.19411558,81580.0,81579.0,7.8e-07]
[1744255410610,1.31454817,81580.0,81579.0,7.8e-07]
[1744255411255,1.20249328,81580.0,81579.0,7.8e-07]
[1744255411602,1.22482786,81580.0,81579.0,7.8e-07]
[1744255412003,0.81445016,81580.0,81579.0,7.8e-07]
[1744255412807,0.81545016,81580.0,81579.0,7.8e-07]
[1744255413400,0.69489634,81580.0,81579.0,7.8e-07]
[1744255413722,0.29195549,81580.0,81579.0,7.8e-07]
[1744255413934,0.03454049,81580.0,81579.0,7.8e-07]
[1744255414146,0.02346291,81580.0,81579.0,7.8e-07]
[1744255414351,0.02546291,81580.0,81579.0,7.8e-07]
[1744255414741,0.01120591,81580.0,81579.0,7.8e-07]
[1744255414928,0.245132,81589.0,81583.0,0.245147]
[1744255414929,0.245142,81586.0,81583.0,0.245147]
[1744255415091,0.245135,81588.0,81582.0,0.012257]
[1744255415295,0.245137,81587.0,81580.0,0.245158]
[1744255415504,0.257391,81588.0,81580.0,0.245158]
[1744255415777,0.012255,81595.0,81590.0,0.245125]
[1744255415993,0.012255,81599.0,81595.0,0.245113]
[1744255416221,0.25735,81601.0,81595.0,0.245113]
[1744255416438,0.012255,81599.0,81592.0,0.245121]
[1744255417085,0.257363,81597.0,81592.0,0.245121]
[1744255417335,0.257363,81597.0,81593.0,0.245117]
[1744255418064,0.257363,81597.0,81590.0,0.245125]
[1744255418065,0.245114,81595.0,81590.0,0.245125]
[1744255418342,0.245126,81591.0,81587.0,0.245134]
[1744255418596,0.245114,81595.0,81589.0,0.24513]
[1744255418597,0.245119,81593.0,81589.0,0.24513]
[1744255418839,0.012256,81592.0,81583.0,0.245148]
[1744255419065,0.012256,81589.0,81585.0,0.245141]
[1744255419290,0.012256,81589.0,81585.0,0.12055382]
[1744255419517,0.245135,81588.0,81585.0,0.12055382]
[1744255419745,0.012257,81584.0,81579.0,7.8e-07]
[1744255419989,0.245141,81586.0,81582.0,0.245151]